Cogmind - Beta 15 @@@ ROGUE MODE // 2025.05.31 @ 18:32:59 Player: OctagonalPrism Result: Destroyed by S-27 Virus with Autogun Performance ------------- Evolutions (6) 3000 Regions Visited (17) 3400 Robots Destroyed (182) 910 Value Destroyed (6836) 6836 Prototype IDs (23) 460 Alien Tech Used (0) 0 Bonus (4984) 4984 TOTAL SCORE: 19590 Bonus ------- High Alert Combat Kills 921 Follower Combat Kills 2146 Network Hubs Disabled 200 Registered with UFD 300 Met Optimus in HQ 500 Built Enhanced Grunts 300 A7 Reached Mainframe 300 Met R17 at Cetus 500 Friendly Fire -183 Cogmind --------- Core Integrity 0/1150 Matter 267/300 Energy 98/100 System Corruption 5% Temperature Cool (0) Movement Core (50) Location -4/Upper Caves Parts ------- > --- POWER (2) -------- (None) > --- PROPULSION (5) --- (None) > --- UTILITY (9) ------ Advanced Signal Interpreter Targeting Computer Advanced Target Analyzer Improved System Shield > --- WEAPON (3) ------- (None) > --- INVENTORY (5) ---- Antimatter Reactor High-capacity Storage Unit Peak State ------------ > --- POWER ------------ Quantum Reactor Quantum Reactor > --- PROPULSION ------- Centrium Heavy Treads Wheel Armored Wheel > --- UTILITY ---------- Advanced Heat Sink Advanced Heat Sink High-capacity Storage Unit Deep Structural Scanner Improved Light Armor Plating Focal Shield Improved Hacking Suite Improved System Shield > --- WEAPON ----------- Gatling Laser Heavy Ion Cannon Advanced KE Penetrator > --- INVENTORY -------- Improved Deuterium Engine Quantum Reactor Wheel Scrap Suit High-capacity Storage Unit Compact Battery Improved Sensor Array Improved Light Armor Plating Improved System Restoration Module Proton Cannon Flak Gun Power Sword [Rating: 93] Favorites ----------- Power Cooled Ion Engine Engine Cooled Ion Engine Power Core Micro Fission Core Reactor Quantum Reactor Propulsion Armored Wheel Treads Advanced Treads Wheel Armored Wheel Flight Unit Surge Thruster Utility High-capacity Storage Unit Device Advanced Heat Sink Storage High-capacity Storage Unit Processor Advanced Targeting Computer Hackware Hacking Suite Protection Hardened Medium Armor Plating Weapon Heavy Particle Cannon Energy Gun Precision Beam Rifle Energy Cannon Heavy Particle Cannon Ballistic Gun Hypervelocity Gauss Rifle Ballistic Cannon Bore Cannon Special Weapon Junk Cannon Impact Weapon Great Maul Slashing Weapon Power Sword Piercing Weapon Heavy Pick Build | -11 -10 -9 -8 -8 -8 -8 -6 -6 -6 -6 -6 -5 -5 -5 -4 -4 -4 ------- Run | Yrd Mat Mat Mat Sto Rec Scr Fac Ext Cet Arc Hub Fac Upp Upp Fac Upp Upp Slots Evolved 12 | . . 2 2 . . . 4 . . . . 2 . . 2 . . Power 1 | . . . . . . . 1 . . . . . . . . . . Propulsion 3 | . . . 1 . . . 1 . . . . . . . 1 . . Utility 7 | . . 2 1 . . . 1 . . . . 2 . . 1 . . Weapon 1 | . . . . . . . 1 . . . . . . . . . . Parts Attached 155 | 8 5 16 18 5 . 5 13 23 7 4 5 23 4 . 15 2 2 Power 19 | 1 1 3 . . . . 3 3 3 . . 2 1 . 1 . 1 Engine 11 | 1 1 3 . . . . 2 3 . . . 1 . . . . . Core 5 | . . . . . . . 1 . . . . 1 1 . 1 . 1 Reactor 3 | . . . . . . . . . 3 . . . . . . . . Propulsion 35 | 3 3 3 3 1 . . 3 7 2 . 1 6 1 . 1 . 1 Treads 15 | . 3 2 1 . . . 2 3 1 . . 2 1 . . . . Leg . | . . . . . . . . . . . . . . . . . . Wheel 19 | 3 . 1 1 1 . . 1 4 1 . 1 4 . . 1 . 1 Hover . | . . . . . . . . . . . . . . . . . . Flight 1 | . . . 1 . . . . . . . . . . . . . . Utility 64 | 2 1 6 12 2 . 3 4 7 1 3 3 10 . . 9 1 . Device 29 | 1 1 4 8 . . 2 . 4 1 1 1 3 . . 3 . . Storage 7 | 1 . . 1 1 . 1 1 1 . . . . . . 1 . . Processor 8 | . . 1 1 . . . . . . . . 2 . . 3 1 . Hackware 8 | . . . . . . . 2 . . 2 1 1 . . 2 . . Protection 12 | . . 1 2 1 . . 1 2 . . 1 4 . . . . . Artifact . | . . . . . . . . . . . . . . . . . . Weapon 37 | 2 . 4 3 2 . 2 3 6 1 1 1 5 2 . 4 1 . Energy Gun 13 | 1 . 2 2 1 . 1 1 . . . 1 2 . . 2 . . Energy Cannon 10 | . . 2 1 1 . . . 2 . . . 1 1 . 2 . . Ballistic Gun 8 | 1 . . . . . . . 3 1 . . 2 1 . . . . Ballistic Cannon 1 | . . . . . . . . . . . . . . . . 1 . Launcher . | . . . . . . . . . . . . . . . . . . Special Weapon 2 | . . . . . . 1 . 1 . . . . . . . . . Impact Weapon 1 | . . . . . . . 1 . . . . . . . . . . Slashing Weapon 1 | . . . . . . . . . . 1 . . . . . . . Piercing Weapon 1 | . . . . . . . 1 . . . . . . . . . . Special Melee Weapon . | . . . . . . . . . . . . . . . . . . Unidentified Prototypes 11 | . . 2 2 . . 2 1 . 2 . . 2 . . . . . Parts Lost 92 | . . 4 3 3 . . 5 16 . 1 5 25 4 . 18 2 6 Power 14 | . . 1 . . . . 2 2 . . . 5 . . 3 . 1 Propulsion 22 | . . 1 1 1 . . . 6 . . 1 8 1 . 2 . 1 Utility 32 | . . 1 1 1 . . 1 4 . 1 3 6 1 . 8 1 4 Weapon 24 | . . 1 1 1 . . 2 4 . . 1 6 2 . 5 1 . Highest Loss Streak 14 | . . 3 1 3 . . 2 14 . 1 2 7 2 . 14 2 6 To Critical Strikes 1 | . . . . . . . . 1 . . . . . . . . . Average Backups 12 | 2 7 7 9 14 14 16 15 14 16 15 14 7 10 12 8 3 2 Power 1 | . 1 . . 1 1 1 . . 1 2 2 1 1 1 . 1 1 Propulsion . | 1 1 2 . 1 1 . . 1 1 1 . . . . . . . Utility 5 | . 2 1 3 6 7 7 7 8 9 8 8 4 5 6 4 1 1 Weapon 4 | . 2 3 4 6 5 5 6 4 4 4 3 1 4 5 2 . . Tool/Special . | . . . . . . . . . . . . . . . . . . Unused Backups 22 | 1 1 2 4 2 . 4 . 1 4 1 . 1 . . . . 1 Power 5 | . 1 . . . . 1 . 1 1 . . . . . . . 1 Propulsion 1 | 1 . . . . . . . . . . . . . . . . . Utility 8 | . . 1 1 . . 3 . . 2 1 . . . . . . . Weapon 8 | . . 1 3 2 . . . . 1 . . 1 . . . . . Tool/Special . | . . . . . . . . . . . . . . . . . . Average Slot Usage (%) 89 | . 99 98 99 98 100 94 98 84 92 93 92 79 77 70 72 44 40 Engine 6 | . 14 10 8 9 9 9 8 9 5 . . 1 . . . . . Core 1 | . . . . . . . 3 . . . . . 10 11 8 . 1 Reactor 1 | . . . . . . . . . 6 13 13 6 . . . . . Treads 7 | . 8 11 8 9 9 9 12 7 1 . 5 5 2 5 4 . . Wheel 12 | . 19 11 18 16 18 18 13 11 18 20 13 6 3 . . . . Device 15 | . 13 15 19 18 18 18 8 8 8 17 19 20 14 11 13 5 7 Storage 7 | . 14 11 9 9 9 8 6 6 6 6 6 5 5 5 4 . . Processor 6 | . . 10 9 9 9 9 6 . . . . 4 11 11 10 20 20 Hackware 4 | . . . . . . . 10 13 13 13 9 5 5 5 10 14 9 Protection 5 | . . 6 7 8 9 9 5 5 10 2 2 2 5 5 4 . . Energy Gun 5 | . 14 10 9 11 9 4 11 1 . . 2 1 2 . 4 . . Energy Cannon 4 | . . 10 9 6 9 4 . 5 6 6 6 2 2 5 4 . . Ballistic Gun 3 | . 14 . . . . . . 8 13 7 10 7 7 5 4 . . Special Weapon 1 | . . . . . . 4 . . . . . . . . . . . Peak Build Rating 93 | 9 10 22 34 36 31 42 61 59 83 79 89 93 67 58 85 43 42 Average Rating 45 | 5 8 19 29 32 31 35 53 45 68 76 85 63 58 58 66 40 35 On Entrance 42 | . 9 10 22 32 31 31 40 58 59 73 79 85 50 58 58 31 33 Naked Turns . | . . . . . . . . . . . . . . . . . . Heaviest Build 110 | 14 14 31 66 106 110 110 80 87 108 108 110 105 95 84 90 10 12 Greatest Support 80 | 32 32 22 24 24 22 22 28 48 50 50 80 80 30 30 30 3 16 Greatest Overweight (x) 15 | . . 3 2 5 4 4 3 15 3 2 4 10 9 2 5 3 3 Average Overweight (x) 2 | . . . 1 2 4 3 2 2 1 1 2 5 6 2 1 . . Largest Inventory Capacity 25 | 8 8 8 20 25 25 25 20 20 20 20 20 20 20 20 20 5 5 Average Capacity 17 | 7 8 8 13 21 25 20 20 20 20 20 20 20 20 20 18 5 5 Most Carried 20 | 6 8 8 16 16 14 20 20 20 20 18 18 14 12 12 11 4 3 Average Carried 12 | 3 7 7 9 14 14 17 17 16 18 17 15 7 10 12 8 3 2 Final Capacity 25 | 8 8 8 20 25 25 20 20 20 20 20 20 20 20 20 5 5 5 Final Carried 19 | 4 8 8 15 14 14 17 18 19 18 18 15 10 12 12 4 3 2 Class Distribution -------------------- 51% | Mutant 12% | Scavenger-Tank 10% | Scavenger-Skirmisher 10% | Hacker-Mutant 10% | Scavenger-Mutant Dominant Class ---------------- Mutant | -10/Materials Mutant | -9/Materials Mutant | -8/Materials Mutant | -8/Storage Mutant | -8/Recycling Mutant | -8/Scraptown Hacker-Mutant | -6/Factory Hacker-Mutant | -6/Extension Scavenger-Tank | -6/Cetus Scavenger-Mutant | -6/Archives Scavenger-Tank | -6/Hub_04(d) Scavenger-Mutant | -5/Factory Scavenger-Skirmisher | -5/Upper Caves Scavenger-Mutant | -5/Upper Caves Scavenger-Skirmisher | -4/Factory Hacker-Mutant | -4/Upper Caves Mutant | -4/Upper Caves Resources | -11 -10 -9 -8 -8 -8 -8 -6 -6 -6 -6 -6 -5 -5 -5 -4 -4 -4 ----------- Run | Yrd Mat Mat Mat Sto Rec Scr Fac Ext Cet Arc Hub Fac Upp Upp Fac Upp Upp Matter Collected 4096 | 279 114 242 389 75 70 122 273 584 229 127 300 603 434 . . 193 62 Remotely . | . . . . . . . . . . . . . . . . . . Salvage Created 8293 | 101 416 758 1667 523 88 . 800 965 226 319 905 911 393 . 81 140 . Parts 373 | 7 34 36 66 16 5 . 17 57 5 20 41 51 13 . 5 . . Haulers Intercepted 8 | . 1 2 3 1 . . . . . . . 1 . . . . . Recyclers Shooed 4 | 1 . . 2 . . . . . . . . 1 . . . . . Parts Field Recycled . | . . . . . . . . . . . . . . . . . . Retrieved Matter . | . . . . . . . . . . . . . . . . . . Parts Self-Destructed 11 | . . . . . . . . . . . . . 11 . . . . Prevented . | . . . . . . . . . . . . . . . . . . Kills | -11 -10 -9 -8 -8 -8 -8 -6 -6 -6 -6 -6 -5 -5 -5 -4 -4 -4 ------- Run | Yrd Mat Mat Mat Sto Rec Scr Fac Ext Cet Arc Hub Fac Upp Upp Fac Upp Upp Combat Hostiles Destroyed 131 | . 9 15 28 11 1 . 11 13 3 2 13 16 7 . 2 . . Guns 87 | . 9 6 18 6 . . 8 6 3 2 10 12 6 . 1 . . Cannons 33 | . . 8 8 2 1 . 1 6 . . 3 3 1 . . . . AOE 2 | . . . . . . . . . . . . 1 . . 1 . . Classes Destroyed 17 | 2 5 2 1 . . . 2 2 . . 1 1 1 . . . . Worker 8 | . . . 1 1 . . . 2 . . 3 1 . . . . . Builder 9 | . 1 1 1 . 1 . 1 1 . . 2 1 . . . . . Tunneler 5 | 2 . . . . . . . 2 . . . 1 . . . . . Hauler 8 | . 1 2 3 1 . . . . . . . 1 . . . . . Recycler 3 | 1 . . 1 . . . 1 . . . . . . . . . . Mechanic 1 | . . . . . . . . . . . . 1 . . . . . Operator 7 | . . 1 1 . . . 1 . . 3 1 . . . . . . Watcher 8 | . 1 1 5 . . . . . . . . 1 . . . . . Swarmer 22 | . 3 4 6 3 . . . . . . . 2 4 . . . . Grunt 61 | . 6 6 18 4 . . 8 5 . . 7 5 2 . . . . Brawler 1 | . . . . . . . . 1 . . . . . . . . . Duelist 3 | . . . . . . . 2 . . . . 1 . . . . . Sentry 25 | . . 5 4 4 1 . . 6 . 2 1 1 1 . . . . Hunter 6 | . . . . . . . . . . . 4 2 . . . . . Programmer 9 | . . . . . . . 1 . . . 1 5 . . 2 . . Behemoth 1 | . . . . . . . . 1 . . . . . . . . . Cetus Guard 3 | . . . . . . . . . 3 . . . . . . . . Enhanced Grunt 1 | . . . . . . . . . . . 1 . . . . . . Packrat 2 | . . . . . . . . . . . . . . . . 2 . Samaritan 2 | . . . . . . . . . . . . . 2 . . . . Butcher 1 | . . . . . . . . . . 1 . . . . . . . Best Kill Streak 7 | 3 4 3 4 6 1 . 3 6 1 2 5 7 4 . 2 . . Combat Bots Only 5 | . 4 3 4 5 1 . 3 5 1 1 3 4 4 . 2 . . Max Kills in Single Turn 2 | 1 1 1 1 2 1 . 1 2 1 1 2 2 2 . 1 1 . Gunslinging 1 | . . . . . . . . . . . . 1 1 . . . . Exploded 1 | . . . . . . . . . . . . 1 . . 1 . . Melee . | . . . . . . . . . . . . . . . . . . Uniques/NPCs Destroyed . | . . . . . . . . . . . . . . . . . . Combat | -11 -10 -9 -8 -8 -8 -8 -6 -6 -6 -6 -6 -5 -5 -5 -4 -4 -4 -------- Run | Yrd Mat Mat Mat Sto Rec Scr Fac Ext Cet Arc Hub Fac Upp Upp Fac Upp Upp Hostile Shots Fired 1399 | . 48 110 135 73 . . 67 281 18 8 146 219 53 . 165 25 51 Missed 389 | . 16 23 40 16 . . 14 83 7 3 39 60 13 . 56 5 14 Hits 1010 | . 32 87 95 57 . . 53 198 11 5 107 159 40 . 109 20 37 Melee 8 | . . . . . . . 5 . . . . 3 . . . . . Projectile 1002 | . 32 87 95 57 . . 48 198 11 5 107 156 40 . 109 20 37 Critical Strikes 45 | . 1 5 8 3 . . 2 4 1 . 2 9 3 . 7 . . Actively Blocked 7 | . . . . . . . . . . . . . . . 7 . . Part Disruptions 2 | . . . . . . . . . . . . 2 . . . . . Damage Taken 15378 | . 348 961 864 614 . . 978 2653 214 114 1410 3456 774 . 2091 304 597 Core 2789 | . 127 259 156 59 . . 16 493 . . 92 369 55 . 620 149 394 Absorbed by Shields 903 | . . . 340 140 . . 40 306 77 . . . . . . . . Reduced by Siege Mode 10 | . . . . . . . . . . . 10 . . . . . . Redirected to Shielding 56 | . . . . . . . . . . . . 56 . . . . . Ignored by Resistances 652 | . . 99 148 40 . . 24 3 . 4 297 37 . . . . . Regen/Repaired (Parts) 610 | . . . 80 . . 368 65 . . . . 97 . . . . . Core Remaining (%) 55 | 100 49 35 . . . 60 . . . . 29 . . 57 . . . Volleys Fired 597 | 9 44 61 136 43 2 . 44 60 13 6 39 96 20 . 17 7 . Largest 3 | 2 2 2 2 2 2 . 2 3 3 3 3 3 3 . 3 1 . Hottest 225 | 70 70 133 136 136 136 . 116 138 133 133 180 184 153 . 225 48 . Shots Fired 1122 | 18 88 105 196 70 4 . 87 136 37 18 115 174 42 . 25 7 . Gun 796 | 18 88 57 129 52 2 . 77 80 24 12 77 137 32 . 11 . . Cannon 322 | . . 48 67 18 2 . 9 53 13 6 38 37 10 . 14 7 . Launcher . | . . . . . . . . . . . . . . . . . . Special 4 | . . . . . . . 1 3 . . . . . . . . . Kinetic 362 | 9 44 2 . . . . . 61 24 12 60 114 27 . 2 7 . Thermal 749 | 9 44 103 196 70 4 . 86 72 13 6 55 56 15 . 20 . . Explosive . | . . . . . . . . . . . . . . . . . . Electromagnetic 7 | . . . . . . . . . . . . 4 . . 3 . . Impact 4 | . . . . . . . 1 3 . . . . . . . . . Robot Hit Streak 26 | 2 14 18 18 26 10 . 23 11 7 5 13 19 14 . 14 5 . Robot Miss Streak 10 | 3 3 2 3 1 . . 2 5 6 1 4 10 2 . 2 3 . Penetration Max 1 | . . . . . . . . 1 1 . 1 1 1 . . . . Secondary Targets 8 | . 2 . . . . . 2 . . . . 2 2 . . . . Max Gunslinging Chain 1 | . 1 . . . . . 1 . . . . 1 1 . . . . Shots Hit Robots 811 | 8 62 81 150 56 3 . 82 93 23 15 74 115 31 . 15 3 . Core Hits 369 | 4 23 28 64 18 3 . 29 37 12 10 38 74 22 . 5 2 . Critical Kills 21 | . . . . . . . . 6 2 2 6 3 . . . 2 . Critical Parts Destroyed 24 | . . . . . . . 1 8 2 2 4 3 2 . . 2 . Critical Strikes 74 | . 2 5 9 3 1 . 5 17 4 5 10 6 2 . 1 4 . Burn 24 | . 2 5 9 3 1 . 4 . . . . . . . . . . Destroy 46 | . . . . . . . . 15 4 5 10 6 2 . . 4 . Corrupt 1 | . . . . . . . . . . . . . . . 1 . . Smash 1 | . . . . . . . 1 . . . . . . . . . . Impale 2 | . . . . . . . . 2 . . . . . . . . . Melee Attacks 28 | . . . . . . . 9 6 . 3 3 7 . . . . . Impact 6 | . . . . . . . 6 . . . . . . . . . . Slashing 13 | . . . . . . . . . . 3 3 7 . . . . . Piercing 9 | . . . . . . . 3 6 . . . . . . . . . Sneak Attacks 10 | . . . . . . . 3 . . 3 1 3 . . . . . Combat Hostiles . | . . . . . . . . . . . . . . . . . . Follow-up Attacks . | . . . . . . . . . . . . . . . . . . Damage Inflicted 18655 | 113 641 1411 2968 1065 58 . 1834 2598 483 596 2132 3405 675 . 583 91 2 Guns 11395 | 113 641 674 1862 815 33 . 1243 1222 271 187 1049 2537 470 . 278 . . Cannons 5111 | . . 735 1106 250 25 . 200 961 212 81 687 395 205 . 163 91 . Explosions 635 | . . . . . . . . . . . 248 245 . . 142 . . Melee 1175 | . . . . . . . 317 154 . 328 148 228 . . . . . Ramming 4 | . . 2 . . . . . . . . . . . . . . 2 Kinetic 4549 | 37 238 6 . . . . . 708 271 187 743 1929 332 . 7 91 . Thermal 12046 | 76 403 1403 2968 1065 58 . 1443 1475 212 81 993 1003 343 . 523 . . Explosive 245 | . . . . . . . . . . . . 245 . . . . . Electromagnetic 301 | . . . . . . . . . . . 248 . . . 53 . . Impact 574 | . . . . . . . 313 261 . . . . . . . . . Slashing 704 | . . . . . . . . . . 328 148 228 . . . . . Piercing 232 | . . . . . . . 78 154 . . . . . . . . . Highest Corruption 13 | . . 1 1 1 1 . 2 3 3 3 . 13 13 13 5 5 5 Average Corruption 4 | . . 1 1 1 1 . 1 2 3 1 . 10 13 13 4 5 5 Corruption Purged 10 | . . . . . . . . . . 3 . 7 . . . . . Corruption Blocked . | . . . . . . . . . . . . . . . . . . Effects 144 | . . 5 14 4 8 . 5 16 11 1 . 31 30 6 3 8 2 Message Errors 28 | . . 1 1 2 . . . 4 2 . . 7 7 2 . 1 1 Matter Fused 31 | . . 1 4 . 2 . 2 4 2 . . 9 3 . . 3 1 Heat Flow Errors 19 | . . 1 3 1 3 . 1 . 1 . . 5 1 2 . 1 . Energy Discharges 15 | . . . 1 . 1 . 1 2 1 . . 2 3 2 1 1 . Parts Rejected 4 | . . . . . . . . 1 1 1 . . . . 1 . . Parts Fused 4 | . . . 1 . . . . 1 . . . . 1 . 1 . . Data Loss (minor) 20 | . . 1 . 1 1 . . . 1 . . 5 9 . . 2 . Data Loss (major) 5 | . . 1 1 . . . . 1 . . . . 2 . . . . Misfires 9 | . . . 2 . 1 . 1 2 . . . 2 1 . . . . Alerts 1 | . . . . . . . . . 1 . . . . . . . . Misdirections 2 | . . . . . . . . . . . . 1 1 . . . . Weapon Failures 6 | . . . 1 . . . . 1 2 . . . 2 . . . . Overload Shots 8 | . . . . . . . . 8 . . . . . . . . . Effects 2 | . . . . . . . . 2 . . . . . . . . . Energy Bleed 1 | . . . . . . . . 1 . . . . . . . . . Heat Surge 1 | . . . . . . . . 1 . . . . . . . . . Overflow Damage 383 | . . 26 17 . . . 115 57 . . 99 44 17 . . 8 . Projectiles 150 | . . 26 17 . . . 24 55 . . 3 . 17 . . 8 . Explosions 35 | . . . . . . . . . . . 25 10 . . . . . Melee 198 | . . . . . . . 91 2 . . 71 34 . . . . . Knockbacks 4 | . . . . . . . 3 . . . . . . . . 1 . Impact 3 | . . . . . . . 3 . . . . . . . . . . Kinetic 1 | . . . . . . . . . . . . . . . . 1 . Secondary . | . . . . . . . . . . . . . . . . . . Self-Inflicted Damage 234 | . . . . . . . . . . . 96 . . . 137 . 1 Shots 3 | . . . . . . . . . . . 1 . . . 2 . . Rammed 2 | . . 1 . . . . . . . . . . . . . . 1 Targets Rammed 2 | . . 1 . . . . . . . . . . . . . . 1 Kicked . | . . . . . . . . . . . . . . . . . . Crushed . | . . . . . . . . . . . . . . . . . . Highest Temperature 411 | 110 258 270 279 411 270 . 300 287 203 153 315 261 180 232 119 208 . Average Temperature 76 | 58 59 89 77 97 89 . 77 84 37 55 63 89 27 139 26 122 . Received Heat Transfer 3142 | . 186 426 530 240 . . 322 541 . 36 129 423 216 . 63 . 30 Effects 2 | . . . . 1 . . . 1 . . . . . . . . . Energy Bleed 1 | . . . . . . . . 1 . . . . . . . . . Damage (minor) 1 | . . . . 1 . . . . . . . . . . . . . Siege Activations 3 | . . . . . . . . . . . 3 . . . . . . Total Turns 33 | . . . . . . . . . . . 33 . . . . . . Longest Duration 25 | . . . . . . . . . . . 25 . . . . . . Martial Activations . | . . . . . . . . . . . . . . . . . . Shielding Activations . | . . . . . . . . . . . . . . . . . . Robots Disrupted . | . . . . . . . . . . . . . . . . . . Combat Hostiles . | . . . . . . . . . . . . . . . . . . Robots Corrupted 3 | . . . . . . . 2 1 . . . . . . . . . Combat Hostiles 1 | . . . . . . . . 1 . . . . . . . . . Parts Fried 4 | . . . . . . . 4 . . . . . . . . . . Impact Corruptions 8 | . . . . . . . 7 1 . . . . . . . . . Robots Melted 8 | . . 1 2 3 . . 2 . . . . . . . . . . Combat Hostiles 8 | . . 1 2 3 . . 2 . . . . . . . . . . Parts Melted 59 | . 1 11 11 11 . . 11 . . 1 7 5 . . 1 . . Heat Transferred 23642 | 222 1332 3330 6364 2368 185 . 3071 2102 296 111 1637 1616 447 . 561 . . Parts Sabotaged . | . . . . . . . . . . . . . . . . . . Parts Stolen . | . . . . . . . . . . . . . . . . . . Parts Stripped . | . . . . . . . . . . . . . . . . . . Power Chain Reactions . | . . . . . . . . . . . . . . . . . . Alert | -11 -10 -9 -8 -8 -8 -8 -6 -6 -6 -6 -6 -5 -5 -5 -4 -4 -4 ------- Run | Yrd Mat Mat Mat Sto Rec Scr Fac Ext Cet Arc Hub Fac Upp Upp Fac Upp Upp Maximum Alert Level 4 | . . . 2 1 . . . 4 3 2 4 2 . . . . . Low Security (%) 56 | 100 100 100 37 11 100 . 100 77 . . 4 . . . 100 . . Level 1 13 | . . . 49 88 . . . 4 . 10 1 15 . . . . . Level 2 20 | . . . 12 . . . . 9 . 89 47 84 . . . . . Level 3 6 | . . . . . . . . 7 100 . 17 . . . . . . Level 4 3 | . . . . . . . . . . . 28 . . . . . . Level 5 . | . . . . . . . . . . . . . . . . . . High Security . | . . . . . . . . . . . . . . . . . . Max Security . | . . . . . . . . . . . . . . . . . . Peak Influence 1306 | 10 137 199 438 398 150 . 79 1306 883 468 1289 662 . . 157 . . Initial 731 | . 3 15 83 174 135 . . 27 731 333 142 628 . . 63 . . Average 273 | 2 72 87 245 320 85 . 16 187 785 429 769 512 . . 25 . . Influence Increases 8230 | 15 295 616 906 395 247 . 294 1650 382 225 1921 734 180 . 310 . 60 Destroy 0b10 Robot/C 3660 | . 180 300 560 220 20 . 220 700 160 80 720 320 140 . 40 . . Destroy 0b10 Robot/NC 290 | 15 15 25 60 10 5 . 15 35 10 15 55 30 . . . . . Destroy Leader 730 | . 44 96 126 72 . . 30 94 . . 184 64 10 . 10 . . Allied During Kill 1619 | . . . . . . . . 709 163 95 652 . . . . . . Successful Hack 291 | . 11 14 5 11 41 . 10 40 19 . 58 14 . . 68 . . Select Force Hacks 330 | . 30 30 30 60 180 . . . . . . . . . . . . Disable Machine 345 | . . . 15 15 . . . 15 . 30 90 105 . . 75 . . Destroy Structure 395 | . . 1 20 7 1 . 4 27 15 5 147 96 . . 72 . . Partial Spotted 15 | . . . 15 . . . . . . . . . . . . . . Lose Combat Pursuer 555 | . 15 150 75 . . . 15 30 15 . 15 105 30 . 45 . 60 Influence Decreases 8210 | 10 263 454 692 459 556 40 238 400 855 650 1046 1387 624 86 349 61 40 Entered New Map 2989 | . 2 22 116 239 214 40 . 29 575 500 266 655 234 36 37 24 . Time Decay 4091 | 10 261 392 546 190 342 . 198 311 180 100 440 482 350 50 202 37 . Lost Part 680 | . . 40 30 30 . . 40 40 . 10 50 250 40 . 110 . 40 Lost Ally 300 | . . . . . . . . 20 100 40 140 . . . . . . Purge Threat 150 | . . . . . . . . . . . 150 . . . . . . Squads Dispatched 42 | . 3 2 5 2 . . 4 3 . . 15 6 . . 2 . . Investigation 17 | . 2 1 4 2 . . 2 1 . . 3 1 . . 1 . . Extermination 4 | . . . . . . . 1 . . . 1 1 . . 1 . . Reinforcement 17 | . 1 1 1 . . . 1 2 . . 8 3 . . . . . Assault 4 | . . . . . . . . . . . 3 1 . . . . . Garrison . | . . . . . . . . . . . . . . . . . . Intercept . | . . . . . . . . . . . . . . . . . . Searches Triggered . | . . . . . . . . . . . . . . . . . . Construction Impeded 3 | . . . . . . . . . . . 2 1 . . . . . Haulers Reinforced . | . . . . . . . . . . . . . . . . . . Active Scanning Responses . | . . . . . . . . . . . . . . . . . . Cargo Convoy Interrupts 1 | . . . . . . . . . . . . 1 . . . . . Stealth | -11 -10 -9 -8 -8 -8 -8 -6 -6 -6 -6 -6 -5 -5 -5 -4 -4 -4 --------- Run | Yrd Mat Mat Mat Sto Rec Scr Fac Ext Cet Arc Hub Fac Upp Upp Fac Upp Upp Distress Signals 19 | . 1 . 3 1 . . . 4 2 . 3 4 . . 1 . . Communications Jammed . | . . . . . . . . . . . . . . . . . . Distress Signals . | . . . . . . . . . . . . . . . . . . Times Spotted 265 | . 18 31 43 12 1 . 15 37 9 3 33 31 9 . 10 4 9 Peak Tracking Total 9 | . 3 6 6 5 1 . 4 4 5 2 5 8 4 . 4 4 9 Tactical Retreats 22 | . 1 6 5 . . . 1 1 1 . 1 1 2 . 2 . 1 Traps | -11 -10 -9 -8 -8 -8 -8 -6 -6 -6 -6 -6 -5 -5 -5 -4 -4 -4 ------- Run | Yrd Mat Mat Mat Sto Rec Scr Fac Ext Cet Arc Hub Fac Upp Upp Fac Upp Upp Traps Triggered 5 | . . . 1 . . . 1 2 . . . 1 . . . . . Indirectly . | . . . . . . . . . . . . . . . . . . Trap Hack Attempts . | . . . . . . . . . . . . . . . . . . Triggered . | . . . . . . . . . . . . . . . . . . Disarmed . | . . . . . . . . . . . . . . . . . . Reprogrammed . | . . . . . . . . . . . . . . . . . . Reused . | . . . . . . . . . . . . . . . . . . Traps Extracted . | . . . . . . . . . . . . . . . . . . Installed . | . . . . . . . . . . . . . . . . . . Triggered . | . . . . . . . . . . . . . . . . . . Machines | -11 -10 -9 -8 -8 -8 -8 -6 -6 -6 -6 -6 -5 -5 -5 -4 -4 -4 ---------- Run | Yrd Mat Mat Mat Sto Rec Scr Fac Ext Cet Arc Hub Fac Upp Upp Fac Upp Upp Machines Disabled 25 | . . . 1 1 . . . 3 . 2 6 7 . . 5 . . Max in Single Turn 3 | . . . 1 1 . . . 1 . 1 3 2 . . 3 . . Network Hub 1 | . . . . . . . . . . . 1 . . . . . . Machines Repaired . | . . . . . . . . . . . . . . . . . . Machines Dismantled . | . . . . . . . . . . . . . . . . . . Machines Sabotaged . | . . . . . . . . . . . . . . . . . . Overloaded Fab Kills . | . . . . . . . . . . . . . . . . . . Hacking | -11 -10 -9 -8 -8 -8 -8 -6 -6 -6 -6 -6 -5 -5 -5 -4 -4 -4 --------- Run | Yrd Mat Mat Mat Sto Rec Scr Fac Ext Cet Arc Hub Fac Upp Upp Fac Upp Upp Machines Accessed 77 | . 6 4 11 4 12 4 7 11 3 . 5 2 1 . 7 . . Terminals 49 | . 5 2 7 1 6 . 3 11 3 . 5 1 1 . 4 . . Fabricators 2 | . . . . . . . 1 . . . . . . . 1 . . Repair Stations 4 | . . . 1 1 . . 1 . . . . . . . 1 . . Recycling Units 15 | . 1 1 2 2 6 . 2 . . . . 1 . . . . . Scanalyzers 3 | . . 1 1 . . . . . . . . . . . 1 . . Garrison Access . | . . . . . . . . . . . . . . . . . . Total Hacks 233 | . 22 8 38 10 24 29 11 16 6 . 12 7 2 . 48 . . Successful 141 | . 12 4 18 7 17 29 6 11 4 . 8 7 2 . 16 . . Failed 91 | . 10 4 20 3 6 . 5 5 2 . 4 . . . 32 . . Catastrophic 16 | . . 1 4 . . . 1 1 1 . 1 . . . 7 . . Database Lockouts 1 | . . . . . 1 . . . . . . . . . . . . Manual 92 | . 14 3 16 7 15 . 7 2 1 . 7 2 . . 18 . . Terminals 125 | . 19 3 21 4 15 . 4 16 6 . 12 2 2 . 21 . . Fabricators 12 | . . . . . . . 1 . . . . . . . 11 . . Repair Stations 8 | . . . 2 2 . . 2 . . . . . . . 2 . . Recycling Units 33 | . 3 2 6 4 9 . 4 . . . . 5 . . . . . Scanalyzers 26 | . . 3 9 . . . . . . . . . . . 14 . . Garrison Access . | . . . . . . . . . . . . . . . . . . Terminal Hacks 69 | . 6 1 4 . 5 29 1 10 4 . 4 1 2 . 2 . . Record 29 | . 1 . . . . 23 . . 3 . . . 2 . . . . Part Schematic 1 | . . . . . 1 . . . . . . . . . . . . Robot Schematic 1 | . . . . . 1 . . . . . . . . . . . . Robot Analysis 6 | . . . . . 1 5 . . . . . . . . . . . Prototype ID Bank 3 | . 1 . . . 2 . . . . . . . . . . . . Open Door 11 | . . . . . . . 1 9 1 . . . . . . . . Branch Access Points 2 | . . . 1 . . . . . . . . . . . 1 . . Emergency Access Points 1 | . . 1 . . . . . . . . . . . . . . . Terminal Index 1 | . . . . . . . . 1 . . . . . . . . . Alert Level 3 | . . . . . . . . . . . 1 1 . . 1 . . Unreport Threat 1 | . . . . . . . . . . . 1 . . . . . . Locate Traps 4 | . 2 . 1 . . . . . . . 1 . . . . . . Zone Layout 5 | . 2 . 2 . . . . . . . 1 . . . . . . Proto ID Catalog 1 | . . . . . . 1 . . . . . . . . . . . Fabricator Hacks 3 | . . . . . . . 1 . . . . . . . 2 . . Network Status 2 | . . . . . . . 1 . . . . . . . 1 . . Load Schematic 1 | . . . . . . . . . . . . . . . 1 . . Repair Station Hacks 7 | . . . 2 1 . . 2 . . . . . . . 2 . . Scan Component 4 | . . . 1 1 . . 1 . . . . . . . 1 . . Repair 3 | . . . 1 . . . 1 . . . . . . . 1 . . Recycling Unit Hacks 9 | . . . . 2 3 . . . . . . 4 . . . . . Process 1 | . . . . . . . . . . . . 1 . . . . . Report Inventory 5 | . . . . 1 3 . . . . . . 1 . . . . . Retrieve Matter 2 | . . . . . . . . . . . . 2 . . . . . Retrieve Components 1 | . . . . 1 . . . . . . . . . . . . . Scanalyzer 16 | . . 2 8 . . . . . . . . . . . 6 . . Insert Component 8 | . . 1 4 . . . . . . . . . . . 3 . . Analyze 8 | . . 1 4 . . . . . . . . . . . 3 . . Garrison Access Hacks . | . . . . . . . . . . . . . . . . . . Unauthorized Hacks 37 | . 6 1 4 4 9 . 2 1 . . 4 2 . . 4 . . Terminals 22 | . 5 . 3 2 3 . . 1 . . 4 1 . . 3 . . Track 1 | . 1 . . . . . . . . . . . . . . . . Assimilate 1 | . . . . . . . . . . . . . . . 1 . . Botnet 16 | . 3 . 3 1 3 . . 1 . . 2 1 . . 2 . . Operators 3 | . 1 . . 1 . . . . . . 1 . . . . . . Sabotage 1 | . . . . . . . . . . . 1 . . . . . . Fabricators 1 | . . . . . . . . . . . . . . . 1 . . Recompile 1 | . . . . . . . . . . . . . . . 1 . . Repair Stations . | . . . . . . . . . . . . . . . . . . Recycling Units 14 | . 1 1 1 2 6 . 2 . . . . 1 . . . . . Tunnel 11 | . 1 1 1 2 6 . . . . . . . . . . . . Fedlink 3 | . . . . . . . 2 . . . . 1 . . . . . Scanalyzers . | . . . . . . . . . . . . . . . . . . Garrison Access . | . . . . . . . . . . . . . . . . . . Data Cores Recovered 1 | . . . . . . . 1 . . . . . . . . . . Used 1 | . . . . . . . 1 . . . . . . . . . . Hacking Detections 46 | . 6 3 9 2 6 . 5 3 2 . 4 1 1 . 4 . . Full Trace Events 10 | . 2 1 4 . 1 . . 1 . . 1 . . . . . . Feedback Events 2 | . . 1 . . . . . 1 . . . . . . . . . Corruption 2 | . . 1 . . . . . 1 . . . . . . . . . Feedback Blocked . | . . . . . . . . . . . . . . . . . . Robot Schematics Acquired 1 | . . . . . 1 . . . . . . . . . . . . Robots Built . | . . . . . . . . . . . . . . . . . . Authchips . | . . . . . . . . . . . . . . . . . . Time . | . . . . . . . . . . . . . . . . . . Total Robot Build Rating . | . . . . . . . . . . . . . . . . . . Part Schematics Acquired 9 | . . 1 4 . 1 . . . . . . . . . 3 . . Parts Built . | . . . . . . . . . . . . . . . . . . Authchips . | . . . . . . . . . . . . . . . . . . Time . | . . . . . . . . . . . . . . . . . . Total Part Build Rating . | . . . . . . . . . . . . . . . . . . Parts Repaired 3 | . . . 1 . . . 1 . . . . . . . 1 . . Time 156 | . . . 51 . . . 19 . . . . . . . 86 . . Parts Recycled . | . . . . . . . . . . . . . . . . . . Recycled Matter 106 | . . . . . . . . . . . . 106 . . . . . Retrieved Matter 106 | . . . . . . . . . . . . 106 . . . . . Retrieved Components 2 | . . . . 2 . . . . . . . . . . . . . Parts Scanalyzed 8 | . . 1 4 . . . . . . . . . . . 3 . . Part Schematics Acquired 8 | . . 1 4 . . . . . . . . . . . 3 . . Parts Damaged 1 | . . . . . . . . . . . . . . . 1 . . Bothacking | -11 -10 -9 -8 -8 -8 -8 -6 -6 -6 -6 -6 -5 -5 -5 -4 -4 -4 ------------ Run | Yrd Mat Mat Mat Sto Rec Scr Fac Ext Cet Arc Hub Fac Upp Upp Fac Upp Upp Used RIF Installer . | . . . . . . . . . . . . . . . . . . Robots Hacked . | . . . . . . . . . . . . . . . . . . Non-combat . | . . . . . . . . . . . . . . . . . . Combat . | . . . . . . . . . . . . . . . . . . Robot Hacks Applied . | . . . . . . . . . . . . . . . . . . Relay Couplers Released . | . . . . . . . . . . . . . . . . . . Fabnet Peak Effective % . | . . . . . . . . . . . . . . . . . . Robots Rewired 10 | . . . . . . . . 10 . . . . . . . . . Allies Hacked 1 | . . . . . . . . . . . . . . . 1 . . Hacks Repelled . | . . . . . . . . . . . . . . . . . . Allies | -11 -10 -9 -8 -8 -8 -8 -6 -6 -6 -6 -6 -5 -5 -5 -4 -4 -4 -------- Run | Yrd Mat Mat Mat Sto Rec Scr Fac Ext Cet Arc Hub Fac Upp Upp Fac Upp Upp Total Allies 26 | . . . . . . . . 20 5 . . . . . 1 . . Largest Group 16 | . . . . . . . . 16 13 13 9 . . . 1 . . Highest-Rated Group 790 | . . . . . . . . 599 790 790 590 . . . 45 . . Highest-Rated Ally 153 | . . . . . . . . 153 137 130 96 . . . 45 . . Total Orders 1 | . . . . . . . . . . . 1 . . . . . . STAY 1 | . . . . . . . . . . . 1 . . . . . . Ally Attacks 347 | . . . . . . . . 148 46 18 135 . . . . . . Total Damage 10607 | . . . . . . . . 3631 1658 516 4802 . . . . . . Kills 67 | . . . . . . . . 30 7 2 28 . . . . . . Allies Corrupted . | . . . . . . . . . . . . . . . . . . Allies Melted . | . . . . . . . . . . . . . . . . . . Intel | -11 -10 -9 -8 -8 -8 -8 -6 -6 -6 -6 -6 -5 -5 -5 -4 -4 -4 ------- Run | Yrd Mat Mat Mat Sto Rec Scr Fac Ext Cet Arc Hub Fac Upp Upp Fac Upp Upp Active Infowar (turns) 10397 | 1 381 402 882 252 760 2922 635 649 127 105 724 1187 495 . 802 38 35 Sensors 3279 | . . . 51 230 41 . 186 289 . . . 1186 495 . 801 . . Terrain 806 | 1 381 402 22 . . . . . . . . . . . . . . Structural 8955 | . . . 860 250 760 2922 635 649 127 105 724 626 492 . 732 38 35 Traps 1 | . . . . . . . . . . . . . . . 1 . . Robot Analysis Total 6 | . . . . . 1 5 . . . . . . . . . . . Derelict Logs Recovered 3 | . . . . . . . . . . . . . 2 . . 1 . Drone Launches . | . . . . . . . . . . . . . . . . . . Drone Recoveries . | . . . . . . . . . . . . . . . . . . Exploration | -11 -10 -9 -8 -8 -8 -8 -6 -6 -6 -6 -6 -5 -5 -5 -4 -4 -4 ------------- Run | Yrd Mat Mat Mat Sto Rec Scr Fac Ext Cet Arc Hub Fac Upp Upp Fac Upp Upp Turns Passed 14501 | 94 610 938 1579 380 760 2951 942 1193 365 211 1086 1255 781 107 912 279 58 Spaces Moved 8045 | 61 331 467 875 148 519 2191 534 597 210 87 450 485 320 34 364 283 89 Core 513 | 10 . . . . . . . 3 . . . . . . 139 283 78 Treads 868 | . 106 180 . . . . . 42 . . 213 56 61 34 176 . . Legs . | . . . . . . . . . . . . . . . . . . Wheels 6664 | 51 225 287 875 148 519 2191 534 552 210 87 237 429 259 . 49 . 11 Hover . | . . . . . . . . . . . . . . . . . . Flight . | . . . . . . . . . . . . . . . . . . Fastest Speed 50 | 50 100 100 105 115 145 100 115 101 105 105 105 140 170 320 50 50 50 Average Speed 140 | 84 119 142 111 126 145 132 128 137 110 108 186 184 218 320 200 88 59 Slowest Speed 800 | 100 160 225 120 165 145 145 130 800 145 120 240 320 400 320 320 200 200 Overloaded Moves . | . . . . . . . . . . . . . . . . . . Propulsion Burnouts . | . . . . . . . . . . . . . . . . . . Robots Hopped . | . . . . . . . . . . . . . . . . . . Potential Cave-ins 2 | . . . . . . . . . . . . 2 . . . . . Cave-ins Triggered 1 | . . . . . . . . . . . . 1 . . . . . Exploration Rate (%) 48 | 4 56 41 66 44 98 95 18 81 80 79 47 9 59 7 10 57 15 Regions Visited 17 Branch Regions 11 Pre-discovered Areas 16 | . 1 1 1 2 6 4 1 . . . . . . . . . . Known Exits Taken 8 | . . . 1 . . . 1 . . . 1 1 1 1 1 1 . Unknown Exits Taken 9 | 1 1 1 . 1 1 1 . 1 1 1 . . . . . . . Scrap Searched 14 | . . . . . . 5 . . . . . . 4 1 . 2 2 Spaces Dug 30 | . . . 5 4 . . 3 . . . 1 12 . . 5 . . Terrain Destroyed 320 | . . . 15 6 1 . 3 5 3 3 194 50 4 . 34 2 . Melee 5 | . . . . . . . 3 . . . 1 1 . . . . . Projectile 84 | . . . 15 6 1 . . 5 3 3 21 19 4 . 5 2 . AOE 231 | . . . . . . . . . . . 172 30 . . 29 . . Terrain Rammed . | . . . . . . . . . . . . . . . . . . Walls Destroyed . | . . . . . . . . . . . . . . . . . . Machines Disabled . | . . . . . . . . . . . . . . . . . . Actions | -11 -10 -9 -8 -8 -8 -8 -6 -6 -6 -6 -6 -5 -5 -5 -4 -4 -4 --------- Run | Yrd Mat Mat Mat Sto Rec Scr Fac Ext Cet Arc Hub Fac Upp Upp Fac Upp Upp Total 10086 | 85 465 634 1276 267 523 2240 682 843 316 184 599 659 363 34 518 305 93 Wait 888 | 1 71 61 197 52 2 1 52 70 70 77 91 21 8 1 103 10 . Move 8027 | 60 330 466 874 147 518 2190 533 596 209 86 449 483 319 33 363 282 89 Hop . | . . . . . . . . . . . . . . . . . . Pick Up 107 | 5 5 8 16 5 . 24 9 14 2 3 3 6 4 . 3 . . Fast Attach 74 | 7 3 6 7 . . 3 6 9 4 1 . 14 3 . 8 1 2 Attach 75 | 1 . 3 3 4 . 3 10 13 1 2 5 14 2 . 10 3 1 Detach 33 | 1 1 3 2 1 . 3 4 6 1 1 . 4 1 . 3 2 . Swap 125 | . 7 12 26 11 1 5 11 11 6 4 8 12 5 . 6 . . Drop 80 | 1 4 13 15 4 . 11 4 9 10 1 1 1 1 . 5 . . Fire 597 | 9 44 61 136 43 2 . 44 60 13 6 39 96 20 . 17 7 . Melee 28 | . . . . . . . 9 6 . 3 3 7 . . . . . Ram 1 | . . . . . . . . . . . . . . . . . 1 Kick . | . . . . . . . . . . . . . . . . . . Crush 1 | . . 1 . . . . . . . . . . . . . . . Escape Stasis 9 | . . . . . . . . 8 . . . 1 . . . . . Rewire 41 | . . . . . . . . 41 . . . . . . . . . Trap . | . . . . . . . . . . . . . . . . . . Miscellaneous . | . . . . . . . . . . . . . . . . . . Route ------- -11/Scrapyard -10/Materials (discovered 3 exits: *Mat / [*Min x2]) -9/Materials (discovered 2 exits: *Mat / [*Min]) -8/Materials (discovered 4 exits: [*Fac x2] / *Sto x2) -8/Storage -8/Recycling (discovered 2 exits: *Fac / *Scr) -8/Scraptown (discovered 2 exits: *Fac x2) -6/Factory (discovered 6 exits: Fac x4 / *Low / *Ext) -6/Extension (discovered 3 exits: *Fac x2 / *Cet) -6/Cetus (discovered 2 exits: *Fac / [*Arc]) -6/Archives (discovered 3 exits: *Fac / *Hub x2) -6/Hub_04(d) (discovered 3 exits: *Fac x3) -5/Factory (discovered 2 exits: *Upp x2) -5/Upper Caves -5/Upper Caves (discovered 2 exits: *Fac / War) -4/Factory (discovered 2 exits: *Upp x2) -4/Upper Caves -4/Upper Caves (discovered 1 exit: [*Res]) History --------- Turn | Location | Event 8 | -11/Scrapyard | Discovered new exit (range 16) 95 | -11/Scrapyard | Entered Materials 273 | -10/Materials | Discovered new exit (range 6) 303 | -10/Materials | Build established: Mutant 428 | -10/Materials | Discovered new exit (range 13) 464 | -10/Materials | Core integrity fell below 50% 664 | -10/Materials | Discovered new exit (range 11) 705 | -10/Materials | Entered another Materials area 705 | -9/Materials | Evolved 2 slots: Utility x2 890 | -9/Materials | Lost 3 parts (1p1u1w) 1339 | -9/Materials | Discovered new exit (range 10) 1489 | -9/Materials | Discovered new exit (range 4) 1506 | -9/Materials | Core integrity fell below 50% 1643 | -9/Materials | Entered another Materials area 1643 | -8/Materials | Evolved 2 slots: Propulsion x1, Utility x1 2255 | -8/Materials | Discovered new exit (range 16) 2638 | -8/Materials | Repaired Cld. Ion Engine 2850 | -8/Materials | Discovered new exit (range 7) 2931 | -8/Materials | Discovered new exit (range 16) 3080 | -8/Materials | Identified exit to Storage 3222 | -8/Materials | Entered Storage 3406 | -8/Storage | Lost 3 parts (1n1u1w) 3596 | -8/Storage | Used back door to open Recycling access 3596 | -8/Storage | Discovered new exit (range 5) 3602 | -8/Storage | Entered Recycling 4063 | -8/Recycling | Discovered new exit (range 16) 4329 | -8/Recycling | Scanned before Scraplab entrance 4345 | -8/Recycling | Discovered new exit (range 11) 4349 | -8/Recycling | Entered Scraplab 4362 | -8/Recycling | Entered Scraptown 4362 | -8/Scraptown | System corruption cleaned by C-Scrubber 4390 | -8/Scraptown | Heard Great Nut preacher, LISTEN AND RECITE! 4642 | -8/Scraptown | Visited IN-MT5's Study 4679 | -8/Scraptown | Visited Awakened 4696 | -8/Scraptown | Visited Cave Peace 4722 | -8/Scraptown | Visited CR-KLE's Repair Center 4737 | -8/Scraptown | CR-KLE repaired 6 parts 4760 | -8/Scraptown | Received an X-ray algorithm 4776 | -8/Scraptown | Visited Fellowship of the Rings 4785 | -8/Scraptown | Visited The Evicted 4799 | -8/Scraptown | Visited Spacefarers 5298 | -8/Scraptown | Visited UFD Registry 5298 | -8/Scraptown | Registered with UFD as "Fluxkit" 5414 | -8/Scraptown | Discovered new exit (range 11) 5623 | -8/Scraptown | Visited Scrap Suit Storage 5630 | -8/Scraptown | Found Scrap Suit 5670 | -8/Scraptown | Visited Junk Cannon Lab 5695 | -8/Scraptown | Found Prototype Special Weapon 5695 | -8/Scraptown | Identified Junk Cannon 5726 | -8/Scraptown | Visited Derelict Rescue Squad 5821 | -8/Scraptown | Visited Science Guys 5864 | -8/Scraptown | Visited Analyses Database 5904 | -8/Scraptown | Visited LU-1G1's Boring Crew 5925 | -8/Scraptown | Visited Chapter 10 5972 | -8/Scraptown | Visited Cartography Club 5998 | -8/Scraptown | Found Surveybot 17 Chip 6159 | -8/Scraptown | Found Deep Structural Scanner 6170 | -8/Scraptown | Learned location of Warlord (-5) 6170 | -8/Scraptown | Learned location of Armory (-3) 6170 | -8/Scraptown | Learned location of Quarantine (-3) 6170 | -8/Scraptown | Learned 8 Factory zone layouts 6170 | -8/Scraptown | Learned 12 Factory zone layouts 6170 | -8/Scraptown | Learned 24 Factory zone layouts 6170 | -8/Scraptown | Learned 16 Research zone layouts 6170 | -8/Scraptown | Learned 20 Lower Caves zone layouts 6170 | -8/Scraptown | Learned 12 Upper Caves zone layouts 6170 | -8/Scraptown | Learned 24 Upper Caves zone layouts 6170 | -8/Scraptown | Learned 16 Upper Caves zone layouts 6170 | -8/Scraptown | Learned 16 Proximity Caves zone layouts 6170 | -8/Scraptown | Learned 4 Armory zone layouts 6170 | -8/Scraptown | Learned Materials emergency access door positions 6170 | -8/Scraptown | Learned location of 1 exit from Factory 6170 | -8/Scraptown | Learned location of 2 exits from Lower Caves 6170 | -8/Scraptown | Learned location of 3 exits from Lower Caves 7087 | -8/Scraptown | Discovered new exit (range 10) 7242 | -8/Scraptown | Met Optimus 7242 | -8/Scraptown | Accepted into 0bPrime 7313 | -8/Scraptown | Entered Factory 7313 | -6/Factory | Evolved 4 slots: Power x1, Propulsion x1, Utility x1, Weapon x1 7314 | -6/Factory | Identified exit to Factory 7315 | -6/Factory | Identified exit to Lower Caves 7315 | -6/Factory | Identified exit to Extension 7876 | -6/Factory | Build established: Hacker-Mutant 8099 | -6/Factory | Repaired Adv. Treads 8228 | -6/Factory | Loaded intel: 8 recycling unit locations 8238 | -6/Factory | Learned location of Protoforge (-2) 8255 | -6/Factory | Entered Extension 8379 | -6/Extension | Spotted B-75 Beast 8477 | -6/Extension | Destroyed B-75 Beast 8518 | -6/Extension | Lost 14 parts (2p5n3u4w) 8545 | -6/Extension | Core integrity fell below 50% 8745 | -6/Extension | Rescued a captive Derelict 8765 | -6/Extension | Rescued a captive Derelict 8784 | -6/Extension | Rescued a captive Derelict 8786 | -6/Extension | Rescued a captive Derelict 8792 | -6/Extension | Rescued a captive Derelict 8805 | -6/Extension | Rescued a captive Derelict 8829 | -6/Extension | Rescued A7 8901 | -6/Extension | Rescued a captive Derelict 8981 | -6/Extension | Discovered exit to Factory (range 17) 8981 | -6/Extension | Spotted B-75 Beast 9005 | -6/Extension | Allies destroyed B-75 Beast 9064 | -6/Extension | Rescued a captive Derelict 9155 | -6/Extension | Disrupted transfer network 9275 | -6/Extension | Rescued a captive Derelict 9395 | -6/Extension | Discovered exit to Factory (range 10) 9396 | -6/Extension | Discovered new exit (range 6) 9438 | -6/Extension | Disrupted transfer network 9448 | -6/Extension | Entered Cetus 9448 | -6/Cetus | Accompanied by 13 allies (A7) 9453 | -6/Cetus | Acquired a Cetus Manufacturing Module code from A7 9458 | -6/Cetus | Spotted Cetus Guard 9458 | -6/Cetus | Spotted Cetus Guard 9459 | -6/Cetus | Destroyed Cetus Guard 9464 | -6/Cetus | Spotted Cetus Guard 9468 | -6/Cetus | Allies destroyed Cetus Guard 9481 | -6/Cetus | Allies destroyed Cetus Guard 9484 | -6/Cetus | Destroyed Cetus Guard 9506 | -6/Cetus | Lost 6 allies 9578 | -6/Cetus | Escorted A7 to Cetus Mainframe 9590 | -6/Cetus | Started Cetus Manufacturing Module 9615 | -6/Cetus | Manufactured an Enhanced Grunt 9640 | -6/Cetus | Manufactured an Enhanced Grunt 9665 | -6/Cetus | Manufactured an Enhanced Grunt 9665 | -6/Cetus | Discovered new exit (range 16) 9685 | -6/Cetus | Spotted Cetus Guard 9685 | -6/Cetus | Spotted Cetus Guard 9690 | -6/Cetus | Manufactured an Enhanced Grunt 9699 | -6/Cetus | Destroyed Cetus Guard 9701 | -6/Cetus | Spotted Cetus Guard 9705 | -6/Cetus | Allies destroyed Cetus Guard 9707 | -6/Cetus | Allies destroyed Cetus Guard 9714 | -6/Cetus | Allies destroyed Cetus Guard 9715 | -6/Cetus | Manufactured an Enhanced Grunt 9724 | -6/Cetus | Discovered exit to Factory (range 16) 9734 | -6/Cetus | Met Revision 17 9813 | -6/Cetus | Entered Archives 9813 | -6/Archives | Accompanied by 13 allies (A7) 9818 | -6/Archives | Received a hacking code to weaken MAIN.C 9875 | -6/Archives | Lost 3 allies 9920 | -6/Archives | Discovered new exit (range 17) 9924 | -6/Archives | Discovered new exit (range 18) 9961 | -6/Archives | Discovered exit to Factory (range 18) 10024 | -6/Archives | Entered Hub_04(d) 10024 | -6/Hub_04(d) | Accompanied by 9 allies 10024 | -6/Hub_04(d) | Discovered exit to Factory (range 11) 10377 | -6/Hub_04(d) | Build established: Scavenger-Tank 10644 | -6/Hub_04(d) | Discovered exit to Factory (range 13) 10666 | -6/Hub_04(d) | Lost 4 allies 10724 | -6/Hub_04(d) | First assault squad dispatched 11084 | -6/Hub_04(d) | Network Hub disabled 11084 | -6/Hub_04(d) | Discovered exit to Factory (range 11) 11110 | -6/Hub_04(d) | Entered Factory 11110 | -5/Factory | Evolved 2 slots: Utility x2 11111 | -5/Factory | Identified exit to Upper Caves 11193 | -5/Factory | Lost 3 parts (1n2u) 11273 | -5/Factory | Lost 7 parts (2n2u3w) 11532 | -5/Factory | Build established: Scavenger-Mutant 11652 | -5/Factory | Crushed by falling debris 11683 | -5/Factory | Lost 3 parts (2p1n) 11851 | -5/Factory | System corruption reached 10% 12009 | -5/Factory | Cargo convoy interrupted 12149 | -5/Factory | Lost 6 parts (2p3n1w) 12287 | -5/Factory | Loaded intel: 8 recycling unit locations 12310 | -5/Factory | First assault squad dispatched 12365 | -5/Factory | Entered Upper Caves 12366 | -5/Upper Caves | Identified exit to Upper Caves 12372 | -5/Upper Caves | Learned Factory trap positions 12678 | -5/Upper Caves | Build established: Scavenger-Skirmisher 12816 | -5/Upper Caves | Learned location of 1 exit from Factory 12914 | -5/Upper Caves | Attracted the attention of an 0b10 checkpoint 13128 | -5/Upper Caves | Encountered a Warlord checkpoint 13146 | -5/Upper Caves | Entered another Upper Caves area 13147 | -5/Upper Caves | Identified exit to Factory 13147 | -5/Upper Caves | Identified exit to Warlord 13251 | -5/Upper Caves | Build established: Scavenger-Mutant 13253 | -5/Upper Caves | Entered Factory 13253 | -4/Factory | Evolved 2 slots: Propulsion x1, Utility x1 13254 | -4/Factory | Identified exit to Upper Caves 13255 | -4/Factory | Loaded intel: 117 trap records 13564 | -4/Factory | Build established: Scavenger-Skirmisher 13981 | -4/Factory | Repaired Broken Centrium Wheel 13983 | -4/Factory | Spotted B-86 Titan 14095 | -4/Factory | Lost 14 parts (3p2n5u4w) 14156 | -4/Factory | Core integrity fell below 50% 14165 | -4/Factory | Entered Upper Caves 14166 | -4/Upper Caves | Identified exit to Upper Caves 14174 | -4/Upper Caves | Spotted B-86 Titan 14182 | -4/Upper Caves | Learned Research stockpile data 14183 | -4/Upper Caves | Lost 4 parts (3u1w) 14288 | -4/Upper Caves | Build established: Hacker-Mutant 14444 | -4/Upper Caves | Entered another Upper Caves area 14481 | -4/Upper Caves | Discovered new exit (range 15) 14497 | -4/Upper Caves | Core integrity fell below 20% 14502 | -4/Upper Caves | Destroyed by S-27 Virus with Autogun Last Messages --------------- 14474_ Found Antimatter Reactor. 14474_ Found 32 Matter. 14475_ Acquired 32 matter. 14475_ Searching scrap... 14475_ Found Com. Wheel. 14475_ Found Fission Core. 14475_ Found Remote Datajack. 14475_ Found 30 Matter. 14476_ Acquired Com. Wheel. 14477_ System corrupted: Matter fused (-10). 14477_ Acquired 30 matter. 14479_ Acquired Fission Core. 14481_ EXIT=FOUND 14482_ Deep Structural Scanner destroyed. 14489_ Com. Wheel destroyed. 14493_ Fission Core destroyed. 14494_ Slammed into S-27 Virus. 14495_ Authchip [Propulsion] destroyed. 14499_ Adv. Targeting Computer destroyed. 14500_ Graphene Brace destroyed. Map ----- +----------------------------------------------------+ | ????????????????????????##### ####### ### | | ????????????????????????#### # # ## ## | | ????????????????????????##### # # ## | | ?????????????????????######## # ## ### | | ?????????????????????######## # ## # ### ###### | | ?????????????????????######## # ### ### ###### | | ?????????????????????####### ###### ####### | | ?????????????????????#### ###### ####### | | ?????????????????????#### ### ###### #####?? | | ?????????????????????#### ### ####### ##?? | | ?????????????????????#### ####### ??? | | ??????????????? ######## #### ##### ??? | | ?????? ????? ######## #### ##### ?????? | | ????? ? ####### #### ###### ?????? | | ????? ####### ########### ?????? | | ??##? ########## ?????? | | ??# ## ## ########## ## ?????? | | ?# ## #### ## ############## ?????? | | #? ### ## #### ?##### ?????? | | # ############ ##### ? ### ?????? | | # ############ ############# ? ## ?????? | | # ######### ############## ???????????? | | # ######## * ############### ?????????????? | | # ???###### | ################?????????????? | | # ##?###### ######??????????????????????? | | ####### ## @#### #????????????????? | | ##### #????????????????? | | < #???????????????? | | # s ### #????????????? | | ## s ### #????????????? | | ?# ##### ### s #????????????? | | ?# ###### #### Y ???????????? | | ?## ###### ##### ?? ??????????? | | ??# ### ####### ######## ??? ###???????????? | | ??###### ################## ???? #?????????????? | | ??#########??###############?????###?????????????? | | ??#########??##############??????????????????????? | | ???########???##########?????????????????????????? | | ?????????????????????????????????????????????????? | | ?????????????????????????????????????????????????? | | ?????????????????????????????????????????????????? | | ?????????????????????????????????????????????????? | | ?????????????????????????????????????????????????? | | ?????????????????????????????????????????????????? | | ?????????????????????????????????????????????????? | | ?????????????????????????????????????????????????? | | ?????????????????????????????????????????????????? | | ?????????????????????????????????????????????????? | | ?????????????????????????????????????????????????? | | ?????????????????????????????????????????????????? | +----------------------------------------------------+ Best States ------------- Heat Dissipation 78 Coolant Potential 50 Energy Generation 45 Energy Capacity 600 Matter Stores 300 Matter Capacity 300 Sight Range 16 Robot Scan Range 16 Terrain Scan Range 16 Terrain Scan Density 10 Armor Coverage 450 Resistance: KI 20 Resistance: TH 10 Resistance: EM 15 Propulsion Shielding 66 Evasion (%) 50 Targeting Accuracy 21 Target Analysis 8 Recoil Reduction 2 Offensive Hacking 24 Defensive Hacking 24 Authchip Count 1 Item Schematics ----------------- Imp. Medium Laser | -9/Materials | Scanalyzed Structural Scanner | -8/Materials | Scanalyzed Reactive Plating | -8/Materials | Scanalyzed Hvy. Particle Cannon | -8/Materials | Scanalyzed Imp. Ion Engine | -8/Materials | Scanalyzed System Shield | -8/Recycling | Hacked Imp. KE Penetrator | -4/Factory | Scanalyzed Hcp. Storage Unit | -4/Factory | Scanalyzed Centrium Wheel | -4/Factory | Scanalyzed Robot Schematics ------------------ G-47 Trooper | -8/Recycling | Hacked Fabricated ------------ Nothing Repaired ---------- Cld. Ion Engine | 27% | -8/Materials Adv. Treads | 61% | -6/Factory Centrium Wheel | 99% | -4/Factory | Broken Alien Tech Used ----------------- None Achievements -------------- None Challenges ------------ None Game ------ Seed HackingContainmentBoomstick Manual? 0 Play Time 02:45:11 Cumulative 229.5 hours Start 2025.05.31 @ 15:46:20 End 2025.05.31 @ 18:32:59 Sessions 1 Manual Loads 0 Difficulty Rogue Special Mode None Game No. 180 Rogue 180 Adventurer 0 Explorer 0 Win Type - Total 6 Types 4/0/1/1/0/0/0/0/0/0 Lore% 77 Gallery% 67 Achievement% 56 Wizard Run 0 Options --------- Layout 2 ASCII 0 Keyboard 0 Movement Numpad Keybinds 0 Fullscreen 2 Font 16/Terminus Map View 55x47 Zoom Use 0% Tactical HUD 1 Map Filters NONE Filters NONE Steam 1 RUN: 14e816ea-73da-47a4-af83-8bb550895a28